[Event "*** Titled Tuesday 3|2 Blitz"]
[Site "Chess.com"]
[Date "2015.10.06"]
[Round "4"]
[White "AlexanderL"]
[Black "Iball95"]
[Result "1-0"]
[WhiteElo "2537"]
[BlackElo "2342"]
[TimeControl "180+2"]
[EndTime "17:50:58 PDT"]
[Termination "AlexanderL won by checkmate"]

1. d4 {[%clk 0:03:01.9]} 1... Nf6 {[%clk 0:02:53.2]} 2. Nc3 {[%clk 0:03:01.9]}
2... d5 {[%clk 0:02:52.3]} 3. Bf4 {[%clk 0:03:02.7]} 3... Bf5 {[%clk 0:02:44.4]}
4. f3 {[%clk 0:02:53.6]} 4... e6 {[%clk 0:02:42.9]} 5. g4 {[%clk 0:02:53.1]}
5... Bg6 {[%clk 0:02:42.8]} 6. h4 {[%clk 0:02:54]} 6... h5 {[%clk 0:02:42.1]} 7.
g5 {[%clk 0:02:55.2]} 7... Ng8 {[%clk 0:02:39.1]} 8. e4 {[%clk 0:02:52.9]} 8...
Bd6 {[%clk 0:02:34]} 9. Nh3 {[%clk 0:02:51.6]} 9... Ne7 {[%clk 0:02:32]} 10. Qd2
{[%clk 0:02:45.8]} 10... c6 {[%clk 0:02:29.2]} 11. O-O-O {[%clk 0:02:45.3]}
11... Bxf4 {[%clk 0:02:13.3]} 12. Nxf4 {[%clk 0:02:45.9]} 12... Nd7 {[%clk
0:02:14.8]} 13. Bd3 {[%clk 0:02:44.1]} 13... dxe4 {[%clk 0:01:53.5]} 14. fxe4
{[%clk 0:02:42.6]} 14... e5 {[%clk 0:01:52.3]} 15. Nxg6 {[%clk 0:02:39.9]} 15...
Nxg6 {[%clk 0:01:54.2]} 16. Ne2 {[%clk 0:02:23.4]} 16... Qb6 {[%clk 0:01:38.7]}
17. Bc4 {[%clk 0:02:21.5]} 17... exd4 {[%clk 0:01:26.2]} 18. Nxd4 {[%clk
0:02:21.8]} 18... Nde5 {[%clk 0:01:26]} 19. Qc3 {[%clk 0:02:17.7]} 19... O-O-O
{[%clk 0:01:23.6]} 20. Nf5 {[%clk 0:02:17.8]} 20... Qc7 {[%clk 0:00:51.4]} 21.
Bb3 {[%clk 0:02:10.1]} 21... f6 {[%clk 0:00:41.5]} 22. Nd4 {[%clk 0:01:55.4]}
22... Qe7 {[%clk 0:00:32.1]} 23. Nf5 {[%clk 0:01:55.5]} 23... Qc7 {[%clk
0:00:32.4]} 24. Qc5 {[%clk 0:01:53.1]} 24... b6 {[%clk 0:00:25.5]} 25. Qc3
{[%clk 0:01:53.8]} 25... Kb8 {[%clk 0:00:25.7]} 26. gxf6 {[%clk 0:01:54.2]}
26... gxf6 {[%clk 0:00:26.5]} 27. Nd4 {[%clk 0:01:55.8]} 27... Qe7 {[%clk
0:00:22]} 28. Nxc6+ {[%clk 0:01:52.2]} 28... Nxc6 {[%clk 0:00:22.3]} 29. Qxc6
{[%clk 0:01:53.6]} 29... Ne5 {[%clk 0:00:15]} 30. Qe6 {[%clk 0:01:54]} 30...
Qxe6 {[%clk 0:00:15]} 31. Bxe6 {[%clk 0:01:55.9]} 31... Kc7 {[%clk 0:00:16.3]}
32. Rxd8 {[%clk 0:01:55]} 32... Rxd8 {[%clk 0:00:18.2]} 33. Bd5 {[%clk
0:01:56.1]} 33... Rd7 {[%clk 0:00:18.6]} 34. Rf1 {[%clk 0:01:55.4]} 34... Ng4
{[%clk 0:00:15.8]} 35. Rf5 {[%clk 0:01:54.4]} 35... Rh7 {[%clk 0:00:17.2]} 36.
Kd2 {[%clk 0:01:49.5]} 36... Kd6 {[%clk 0:00:18]} 37. Ke2 {[%clk 0:01:50.5]}
37... Rh6 {[%clk 0:00:18.7]} 38. Bf7 {[%clk 0:01:47.3]} 38... Ne5 {[%clk
0:00:13.7]} 39. Bxh5 {[%clk 0:01:46.9]} 39... Nc6 {[%clk 0:00:14.4]} 40. Rd5+
{[%clk 0:01:42.1]} 40... Kc7 {[%clk 0:00:13.1]} 41. Bg4 {[%clk 0:01:13.9]} 41...
Rxh4 {[%clk 0:00:14]} 42. Rd7+ {[%clk 0:01:14.9]} 42... Kb8 {[%clk 0:00:15.3]}
43. Bf5 {[%clk 0:01:11]} 43... Ne5 {[%clk 0:00:14.3]} 44. Rd8+ {[%clk
0:01:04.3]} 44... Kc7 {[%clk 0:00:14.5]} 45. Rc8+ {[%clk 0:01:05.4]} 45... Kb7
{[%clk 0:00:15.3]} 46. b3 {[%clk 0:00:59.3]} 46... Rh2+ {[%clk 0:00:16.4]} 47.
Ke3 {[%clk 0:01:00.5]} 47... Rh1 {[%clk 0:00:15]} 48. Rf8 {[%clk 0:00:59.7]}
48... Re1+ {[%clk 0:00:15.9]} 49. Kd2 {[%clk 0:00:57.9]} 49... Nf3+ {[%clk
0:00:16.2]} 50. Kd3 {[%clk 0:00:52.1]} 50... Ne5+ {[%clk 0:00:17.5]} 51. Kc3
{[%clk 0:00:53.1]} 51... Re3+ {[%clk 0:00:17.9]} 52. Kd2 {[%clk 0:00:52.8]}
52... Rf3 {[%clk 0:00:17.1]} 53. Rxf6 {[%clk 0:00:53]} 53... Rf2+ {[%clk
0:00:18.3]} 54. Kc3 {[%clk 0:00:52.9]} 54... Rf3+ {[%clk 0:00:17.8]} 55. Kb2
{[%clk 0:00:53.7]} 55... Rf2 {[%clk 0:00:18.8]} 56. Bc8+ {[%clk 0:00:53.7]}
56... Kxc8 {[%clk 0:00:18.4]} 57. Rxf2 {[%clk 0:00:55.6]} 57... Kd7 {[%clk
0:00:20.3]} 58. Kc3 {[%clk 0:00:54.1]} 58... Nc6 {[%clk 0:00:20.8]} 59. Rf7+
{[%clk 0:00:54.6]} 59... Ke8 {[%clk 0:00:19.7]} 60. Rc7 {[%clk 0:00:55.2]} 60...
Ne5 {[%clk 0:00:18.1]} 61. Rxa7 {[%clk 0:00:56.2]} 61... Nc6 {[%clk 0:00:19.7]}
62. Rb7 {[%clk 0:00:56]} 62... Nd8 {[%clk 0:00:19.8]} 63. Rb8 {[%clk 0:00:56]}
63... Kd7 {[%clk 0:00:21.7]} 64. Rxd8+ {[%clk 0:00:57.9]} 64... Kxd8 {[%clk
0:00:23]} 65. Kc4 {[%clk 0:00:59.8]} 65... Kc7 {[%clk 0:00:24.9]} 66. Kb5 {[%clk
0:01:01.7]} 66... Kd6 {[%clk 0:00:26.8]} 67. c4 {[%clk 0:01:03.6]} 67... Kc7
{[%clk 0:00:26.8]} 68. b4 {[%clk 0:01:05.5]} 68... Kb7 {[%clk 0:00:26.4]} 69. a4
{[%clk 0:01:07.4]} 69... Ka7 {[%clk 0:00:26.8]} 70. e5 {[%clk 0:01:09.3]} 70...
Kb7 {[%clk 0:00:27.1]} 71. e6 {[%clk 0:01:11.2]} 71... Kc7 {[%clk 0:00:27.2]}
72. e7 {[%clk 0:01:13.1]} 72... Kd7 {[%clk 0:00:28.4]} 73. e8=Q+ {[%clk
0:01:14.3]} 73... Kxe8 {[%clk 0:00:30.1]} 74. Kxb6 {[%clk 0:01:16.1]} 74... Kd8
{[%clk 0:00:32]} 75. b5 {[%clk 0:01:18]} 75... Kc8 {[%clk 0:00:33.9]} 76. c5
{[%clk 0:01:19.9]} 76... Kb8 {[%clk 0:00:35.8]} 77. a5 {[%clk 0:01:21.8]} 77...
Ka8 {[%clk 0:00:37.3]} 78. a6 {[%clk 0:01:23.7]} 78... Kb8 {[%clk 0:00:39.2]}
79. c6 {[%clk 0:01:21.6]} 79... Ka8 {[%clk 0:00:41.1]} 80. Kc5 {[%clk
0:01:22.8]} 80... Kb8 {[%clk 0:00:40.1]} 81. b6 {[%clk 0:01:22.7]} 81... Ka8
{[%clk 0:00:40.8]} 82. Kd6 {[%clk 0:01:23.8]} 82... Kb8 {[%clk 0:00:41.8]} 83.
c7+ {[%clk 0:01:25.7]} 83... Kc8 {[%clk 0:00:41.9]} 84. b7# {[%clk 0:01:26.7]}
1-0

[Event "*** Titled Tuesday 3|2 Blitz"]
[Site "Chess.com"]
[Date "2015.10.06"]
[Round "4"]
[White "Jahonas"]
[Black "ilmago"]
[Result "1-0"]
[WhiteElo "2058"]
[BlackElo "1879"]
[TimeControl "180+2"]
[EndTime "17:53:58 PDT"]
[Termination "Jahonas won by resignation"]

1. d4 {[%clk 0:03:01.9]} 1... Nf6 {[%clk 0:03:00.5]} 2. Nf3 {[%clk 0:03:03.1]}
2... g6 {[%clk 0:03:01.3]} 3. c4 {[%clk 0:03:04.4]} 3... Bg7 {[%clk 0:03:02.4]}
4. Nc3 {[%clk 0:03:05.7]} 4... O-O {[%clk 0:03:03.3]} 5. e4 {[%clk 0:03:07]}
5... d6 {[%clk 0:03:04.6]} 6. Be2 {[%clk 0:03:08.4]} 6... e5 {[%clk 0:03:04.7]}
7. dxe5 {[%clk 0:03:09.8]} 7... dxe5 {[%clk 0:03:05.4]} 8. Qxd8 {[%clk
0:03:11.7]} 8... Rxd8 {[%clk 0:03:06]} 9. Bg5 {[%clk 0:03:13.3]} 9... Re8 {[%clk
0:03:06.8]} 10. Bxf6 {[%clk 0:03:06]} 10... Bxf6 {[%clk 0:03:06.4]} 11. Nd5
{[%clk 0:03:07.2]} 11... Bd8 {[%clk 0:03:05.4]} 12. O-O-O {[%clk 0:03:07.8]}
12... c6 {[%clk 0:03:06.2]} 13. Ne3 {[%clk 0:03:08.6]} 13... Nd7 {[%clk
0:03:02.2]} 14. h4 {[%clk 0:03:05.6]} 14... Nc5 {[%clk 0:03:01.1]} 15. Nd2
{[%clk 0:03:04.2]} 15... h5 {[%clk 0:02:56.3]} 16. g4 {[%clk 0:03:01.5]} 16...
hxg4 {[%clk 0:02:55.2]} 17. h5 {[%clk 0:02:57.9]} 17... Kg7 {[%clk 0:02:49.7]}
18. hxg6 {[%clk 0:02:58.4]} 18... fxg6 {[%clk 0:02:47.2]} 19. Rdg1 {[%clk
0:02:53.8]} 19... Bg5 {[%clk 0:02:36.1]} 20. b4 {[%clk 0:02:52.4]} 20... Bxe3
{[%clk 0:02:30.3]} 21. fxe3 {[%clk 0:02:52.7]} 21... Na4 {[%clk 0:02:28.4]} 22.
Bxg4 {[%clk 0:02:50]} 22... Bxg4 {[%clk 0:02:27.4]} 23. Rxg4 {[%clk 0:02:50.6]}
23... Rh8 {[%clk 0:02:20.9]} 24. Rhg1 {[%clk 0:02:50.6]} 24... Rh6 {[%clk
0:02:21.5]} 25. Kc2 {[%clk 0:02:47.5]} 25... Rf8 {[%clk 0:02:20.8]} 26. R1g2
{[%clk 0:02:47.1]} 26... Nb6 {[%clk 0:02:17.5]} 27. R4g3 {[%clk 0:02:38]} 27...
Rf6 {[%clk 0:02:15.8]} 28. c5 {[%clk 0:02:33.6]} 28... Nd7 {[%clk 0:02:14.5]}
29. Nc4 {[%clk 0:02:32.8]} 29... Rh4 {[%clk 0:02:11.1]} 30. Kd3 {[%clk
0:02:32.3]} 30... b6 {[%clk 0:02:09.2]} 31. cxb6 {[%clk 0:02:32.6]} 31... axb6
{[%clk 0:02:09.7]} 32. a4 {[%clk 0:02:29.8]} 32... b5 {[%clk 0:02:03.6]} 33.
axb5 {[%clk 0:02:28.9]} 33... cxb5 {[%clk 0:02:04.5]} 34. Nd2 {[%clk 0:02:27.9]}
34... Rd6+ {[%clk 0:02:04.4]} 35. Ke2 {[%clk 0:02:15.2]} 35... Nb6 {[%clk
0:02:04.9]} 36. Rg5 {[%clk 0:02:03]} 36... Re6 {[%clk 0:01:57.5]} 37. Kd3 {[%clk
0:01:57.7]} 37... Rh1 {[%clk 0:01:56.9]} 38. Nf3 {[%clk 0:01:56.6]} 38... Nc4
{[%clk 0:01:51.1]} 39. Rg1 {[%clk 0:01:15.7]} 39... Rh3 {[%clk 0:01:44]} 40. Ke2
{[%clk 0:01:12.1]} 40... Rd6 {[%clk 0:01:33.6]} 41. Ra1 {[%clk 0:01:10.8]} 41...
Kf6 {[%clk 0:01:26.5]} 42. Rg2 {[%clk 0:01:04]} 42... Nb2 {[%clk 0:00:58.6]} 43.
Rf2 {[%clk 0:00:44.2]} 43... Kg7 {[%clk 0:00:44.6]} 44. Ra7+ {[%clk 0:00:40.2]}
44... Kh6 {[%clk 0:00:45.1]} 45. Nxe5 {[%clk 0:00:38.6]} 45... Re6 {[%clk
0:00:46]} 46. Nf7+ {[%clk 0:00:37.9]} 46... Kh5 {[%clk 0:00:44.7]} 47. e5 {[%clk
0:00:30.3]} 47... Nc4 {[%clk 0:00:42.6]} 48. Rf3 {[%clk 0:00:22.8]} 48... Rxf3
{[%clk 0:00:42.5]} 49. Kxf3 {[%clk 0:00:23.9]} 49... Nxe5+ {[%clk 0:00:43.5]}
50. Nxe5 {[%clk 0:00:24.9]} 50... Rxe5 {[%clk 0:00:45.1]} 51. Rb7 {[%clk
0:00:24.6]} 51... g5 {[%clk 0:00:38.2]} 52. e4 {[%clk 0:00:25.6]} 52... Kg6
{[%clk 0:00:32]} 53. Rb6+ {[%clk 0:00:25.4]} 53... Kh5 {[%clk 0:00:31.1]} 54.
Rc6 {[%clk 0:00:20.3]} 54... g4+ {[%clk 0:00:29.6]} 55. Kf4 {[%clk 0:00:20.9]}
55... Rg5 {[%clk 0:00:29.2]} 56. Rc5 {[%clk 0:00:18.5]} 56... Rxc5 {[%clk
0:00:18]} 57. bxc5 {[%clk 0:00:20.4]} 57... g3 {[%clk 0:00:15.2]} 58. Kxg3
{[%clk 0:00:21.2]} 58... b4 {[%clk 0:00:15.3]} 59. c6 {[%clk 0:00:22.2]} 59...
b3 {[%clk 0:00:16.8]} 60. c7 {[%clk 0:00:24.1]} 60... b2 {[%clk 0:00:18.5]} 61.
c8=Q {[%clk 0:00:25.5]} 61... b1=Q {[%clk 0:00:20.4]} 62. Qf5+ {[%clk
0:00:25.9]} 62... Kh6 {[%clk 0:00:20.9]} 63. Kf4 {[%clk 0:00:24.9]} 63... Qc1+
{[%clk 0:00:19.5]} 64. Ke5 {[%clk 0:00:25.7]} 64... Qb2+ {[%clk 0:00:20.2]} 65.
Ke6 {[%clk 0:00:26.4]} 65... Qb6+ {[%clk 0:00:19.6]} 66. Kf7 {[%clk 0:00:27.1]}
66... Qc7+ {[%clk 0:00:19.2]} 67. Kf6 {[%clk 0:00:26.8]} 67... Qd8+ {[%clk
0:00:19.4]} 68. Ke6 {[%clk 0:00:27.4]} 68... Qe8+ {[%clk 0:00:19.6]} 69. Kd5
{[%clk 0:00:28.1]} 69... Qb5+ {[%clk 0:00:20]} 70. Kd6 {[%clk 0:00:27.3]} 70...
Qb6+ {[%clk 0:00:20.6]} 71. Ke7 {[%clk 0:00:28]} 71... Qc7+ {[%clk 0:00:19.5]}
72. Kf6 {[%clk 0:00:25.7]} 72... Qd8+ {[%clk 0:00:19.7]} 73. Ke5 {[%clk
0:00:26]} 73... Qa5+ {[%clk 0:00:19.5]} 74. Kf4 {[%clk 0:00:26.9]} 74... Qd2+
{[%clk 0:00:17.4]} 75. Kg4 {[%clk 0:00:26.7]} 75... Qg2+ {[%clk 0:00:17.9]} 76.
Kf4 {[%clk 0:00:27.9]} 76... Qf2+ {[%clk 0:00:17.9]} 77. Ke5 {[%clk 0:00:29.1]}
77... Qc5+ {[%clk 0:00:18.8]} 78. Ke6 {[%clk 0:00:29.5]} 78... Qc8+ {[%clk
0:00:19.7]} 79. Kd6 {[%clk 0:00:29.2]} 79... Qb8+ {[%clk 0:00:18.7]} 80. Kd5
{[%clk 0:00:29.4]} 80... Qd8+ {[%clk 0:00:18.3]} 81. Kc4 {[%clk 0:00:29.6]}
81... Qc7+ {[%clk 0:00:16.6]} 82. Qc5 {[%clk 0:00:30.5]} 82... Qf7+ {[%clk
0:00:16.3]} 83. Kd4 {[%clk 0:00:28.7]} 83... Qf2+ {[%clk 0:00:16.6]} 84. Kd5
{[%clk 0:00:29.2]} 84... Qf7+ {[%clk 0:00:16.2]} 85. Kd4 {[%clk 0:00:28.2]}
85... Qf2+ {[%clk 0:00:16.9]} 86. Kc4 {[%clk 0:00:29.5]} 86... Qc2+ {[%clk
0:00:17.4]} 87. Kd5 {[%clk 0:00:30.1]} 87... Qa2+ {[%clk 0:00:16.3]} 88. Kd6
{[%clk 0:00:29.6]} 88... Qh2+ {[%clk 0:00:15.1]} 89. Qe5 {[%clk 0:00:30]} 89...
Qd2+ {[%clk 0:00:15.8]} 90. Ke6 {[%clk 0:00:30.6]} 90... Qa2+ {[%clk 0:00:15.9]}
91. Qd5 {[%clk 0:00:31.8]} 91... Qa6+ {[%clk 0:00:15.2]} 92. Qd6 {[%clk
0:00:32.9]} 92... Qe2 {[%clk 0:00:15.3]} 93. Kd7+ {[%clk 0:00:32.5]} 93... Kg5
{[%clk 0:00:15.5]} 94. e5 {[%clk 0:00:33.7]} 94... Qb5+ {[%clk 0:00:15.1]} 95.
Ke7 {[%clk 0:00:32.9]} 95... Qb7+ {[%clk 0:00:15.3]} 96. Qd7 {[%clk 0:00:29.5]}
96... Qb4+ {[%clk 0:00:15.9]} 97. Kf7 {[%clk 0:00:29.9]} 97... Qc4+ {[%clk
0:00:16.6]} 98. e6 {[%clk 0:00:30.8]} 98... Qf4+ {[%clk 0:00:16.9]} 99. Ke8
{[%clk 0:00:31.8]} 99... Qe5 {[%clk 0:00:15]} 100. Qe7+ {[%clk 0:00:31.6]}
100... Kf4 {[%clk 0:00:14.1]} 101. Qf7+ {[%clk 0:00:32.3]} 101... Ke4 {[%clk
0:00:14.1]} 102. Qb7+ {[%clk 0:00:32]} 102... Kf5 {[%clk 0:00:14.3]} 103. e7
{[%clk 0:00:30.2]} 103... Qh8+ {[%clk 0:00:13.9]} 104. Kd7 {[%clk 0:00:31.2]}
104... Qd4+ {[%clk 0:00:13.9]} 105. Kc8 {[%clk 0:00:31.5]} 105... Qh8+ {[%clk
0:00:11.1]} 106. Kc7 {[%clk 0:00:31.1]} 106... Qe5+ {[%clk 0:00:11.4]} 107. Kd8
{[%clk 0:00:28.9]} 107... Qa5+ {[%clk 0:00:08.7]} 108. Qc7 {[%clk 0:00:28.7]}
108... Qa8+ {[%clk 0:00:02.2]} 109. Qc8+ {[%clk 0:00:29.8]} 1-0

[Event "*** Titled Tuesday 3|2 Blitz"]
[Site "Chess.com"]
[Date "2015.10.06"]
[Round "5"]
[White "Makalexa"]
[Black "Po6Don"]
[Result "0-1"]
[WhiteElo "1987"]
[BlackElo "2058"]
[TimeControl "180+2"]
[EndTime "17:59:09 PDT"]
[Termination "Po6Don won by resignation"]

1. e4 {[%clk 0:03:01.9]} 1... e5 {[%clk 0:02:59.1]} 2. Nf3 {[%clk 0:03:02.2]}
2... Nc6 {[%clk 0:02:58.7]} 3. Bb5 {[%clk 0:03:02.4]} 3... f5 {[%clk 0:02:59.1]}
4. Nc3 {[%clk 0:02:59.5]} 4... fxe4 {[%clk 0:02:57.4]} 5. Nxe4 {[%clk
0:03:01.4]} 5... Nf6 {[%clk 0:02:58.5]} 6. Nxf6+ {[%clk 0:03:00.5]} 6... Qxf6
{[%clk 0:03:00.4]} 7. Qe2 {[%clk 0:02:52.6]} 7... Be7 {[%clk 0:03:01]} 8. O-O
{[%clk 0:02:35]} 8... Nd4 {[%clk 0:02:56.6]} 9. Nxd4 {[%clk 0:02:31.3]} 9...
exd4 {[%clk 0:02:58.2]} 10. c3 {[%clk 0:02:30.9]} 10... c6 {[%clk 0:02:57.8]}
11. Ba4 {[%clk 0:02:22.8]} 11... d5 {[%clk 0:02:58.7]} 12. Re1 {[%clk
0:02:17.9]} 12... O-O {[%clk 0:02:52.9]} 13. cxd4 {[%clk 0:02:07.5]} 13... Bd6
{[%clk 0:02:50.4]} 14. d3 {[%clk 0:01:55.8]} 14... Bg4 {[%clk 0:02:48.1]} 15.
Qc2 {[%clk 0:01:45.3]} 15... Qh4 {[%clk 0:02:40]} 16. h3 {[%clk 0:01:32.7]}
16... Bxh3 {[%clk 0:02:29.4]} 17. gxh3 {[%clk 0:01:34.6]} 17... Qxh3 {[%clk
0:02:27.7]} 18. f4 {[%clk 0:01:27.4]} 18... Qg3+ {[%clk 0:02:12.9]} 19. Kf1
{[%clk 0:01:23.6]} 19... Bxf4 {[%clk 0:02:11.3]} 20. Bxf4 {[%clk 0:01:16.8]}
20... Rxf4+ {[%clk 0:02:13.2]} 21. Ke2 {[%clk 0:01:17.3]} 21... Re8+ {[%clk
0:02:01.1]} 22. Kd2 {[%clk 0:01:16]} 22... Rf2+ {[%clk 0:02:01.5]} 23. Kc3
{[%clk 0:01:13.9]} 23... Rxc2+ {[%clk 0:02:00]} 24. Bxc2 {[%clk 0:01:12.9]}
24... Rxe1 {[%clk 0:01:56.9]} 0-1

[Event "*** Titled Tuesday 3|2 Blitz"]
[Site "Chess.com"]
[Date "2015.10.06"]
[Round "5"]
[White "jlandaw"]
[Black "AlexanderL"]
[Result "0-1"]
[WhiteElo "2380"]
[BlackElo "2543"]
[TimeControl "180+2"]
[EndTime "18:01:00 PDT"]
[Termination "AlexanderL won by resignation"]

1. e4 {[%clk 0:03:01.9]} 1... e6 {[%clk 0:03:01.9]} 2. d4 {[%clk 0:03:00.6]}
2... d5 {[%clk 0:03:03.2]} 3. Nd2 {[%clk 0:03:02.3]} 3... Nf6 {[%clk 0:03:03.2]}
4. e5 {[%clk 0:03:02.3]} 4... Nfd7 {[%clk 0:03:04.4]} 5. Bd3 {[%clk 0:03:03.6]}
5... c5 {[%clk 0:03:05.8]} 6. c3 {[%clk 0:03:05.2]} 6... Nc6 {[%clk 0:03:06.8]}
7. Ndf3 {[%clk 0:03:06.7]} 7... Qb6 {[%clk 0:02:00.5]} 8. Ne2 {[%clk 0:03:01.3]}
8... cxd4 {[%clk 0:02:01.8]} 9. cxd4 {[%clk 0:03:02.1]} 9... Bb4+ {[%clk
0:02:03.3]} 10. Bd2 {[%clk 0:02:57.2]} 10... O-O {[%clk 0:02:03.6]} 11. Nc3
{[%clk 0:02:06.3]} 11... Nxd4 {[%clk 0:01:55.8]} 12. Bxh7+ {[%clk 0:02:03.3]}
12... Kxh7 {[%clk 0:01:51.6]} 13. Ng5+ {[%clk 0:02:04.5]} 13... Kg6 {[%clk
0:01:50]} 14. h4 {[%clk 0:01:58.3]} 14... Nxe5 {[%clk 0:01:48.4]} 15. Be3 {[%clk
0:01:06.9]} 15... Bc5 {[%clk 0:01:29.8]} 16. h5+ {[%clk 0:00:25.4]} 16... Kf6
{[%clk 0:01:29.6]} 17. Nh7+ {[%clk 0:00:26.9]} 17... Ke7 {[%clk 0:01:30.6]} 18.
Nxf8 {[%clk 0:00:28.3]} 18... Kxf8 {[%clk 0:01:31.5]} 19. O-O {[%clk 0:00:28.1]}
19... Nf5 {[%clk 0:01:26.9]} 20. Bxc5+ {[%clk 0:00:21.2]} 20... Qxc5 {[%clk
0:01:27.5]} 21. Re1 {[%clk 0:00:21.4]} 21... f6 {[%clk 0:01:22.1]} 22. Na4
{[%clk 0:00:19.2]} 22... Qd4 {[%clk 0:01:21.9]} 23. Qxd4 {[%clk 0:00:19.2]}
23... Nxd4 {[%clk 0:01:23]} 24. Rac1 {[%clk 0:00:21.1]} 24... Nd3 {[%clk
0:01:21.1]} 25. Rcd1 {[%clk 0:00:16]} 25... Nxe1 {[%clk 0:01:21.9]} 26. Rxd4
{[%clk 0:00:17.1]} 26... Nc2 {[%clk 0:01:23]} 27. Rh4 {[%clk 0:00:16.2]} 27...
e5 {[%clk 0:01:14.7]} 28. Kf1 {[%clk 0:00:16.6]} 28... Nd4 {[%clk 0:01:15]} 0-1

[Event "*** Titled Tuesday 3|2 Blitz"]
[Site "Chess.com"]
[Date "2015.10.06"]
[Round "5"]
[White "Boryboy"]
[Black "Tal-Baronfew"]
[Result "0-1"]
[WhiteElo "2458"]
[BlackElo "2743"]
[TimeControl "180+2"]
[EndTime "18:01:15 PDT"]
[Termination "Tal-Baronfew won on time"]

1. d4 {[%clk 0:03:01.9]} 1... Nf6 {[%clk 0:03:00.5]} 2. Nf3 {[%clk 0:02:59.2]}
2... d5 {[%clk 0:03:01.4]} 3. c4 {[%clk 0:02:58.1]} 3... e6 {[%clk 0:03:02.4]}
4. g3 {[%clk 0:02:59.1]} 4... Bb4+ {[%clk 0:03:02.4]} 5. Bd2 {[%clk 0:02:59.8]}
5... Bd6 {[%clk 0:03:03.3]} 6. Bg2 {[%clk 0:02:59.7]} 6... c6 {[%clk 0:03:00.7]}
7. Qc2 {[%clk 0:02:58.1]} 7... Nbd7 {[%clk 0:02:58.7]} 8. O-O {[%clk 0:02:56.4]}
8... O-O {[%clk 0:02:57.9]} 9. Nc3 {[%clk 0:02:44.6]} 9... dxc4 {[%clk
0:02:58.4]} 10. Bg5 {[%clk 0:02:34.7]} 10... h6 {[%clk 0:02:54.4]} 11. Bxf6
{[%clk 0:02:35.3]} 11... Nxf6 {[%clk 0:02:36.5]} 12. Nd2 {[%clk 0:02:31.9]}
12... e5 {[%clk 0:02:31.4]} 13. dxe5 {[%clk 0:02:31.2]} 13... Bxe5 {[%clk
0:02:32.6]} 14. Nxc4 {[%clk 0:02:32.7]} 14... Bc7 {[%clk 0:02:31.7]} 15. e4
{[%clk 0:02:27.5]} 15... Re8 {[%clk 0:02:31.8]} 16. Rfe1 {[%clk 0:02:13.3]}
16... Be6 {[%clk 0:02:29.5]} 17. Rad1 {[%clk 0:02:11.1]} 17... Qe7 {[%clk
0:02:27.7]} 18. Ne3 {[%clk 0:01:57.8]} 18... Rad8 {[%clk 0:02:29.2]} 19. Ned5
{[%clk 0:01:51.2]} 19... Bxd5 {[%clk 0:02:26.7]} 20. exd5 {[%clk 0:01:49.4]}
20... Qxe1+ {[%clk 0:02:28.1]} 21. Rxe1 {[%clk 0:01:51]} 21... Rxe1+ {[%clk
0:02:29.6]} 22. Bf1 {[%clk 0:01:52.5]} 22... Nxd5 {[%clk 0:02:31.1]} 23. Kg2
{[%clk 0:01:45.7]} 23... Bb6 {[%clk 0:02:23]} 24. Nxd5 {[%clk 0:01:37.2]} 24...
Rxd5 {[%clk 0:02:24.3]} 25. Bc4 {[%clk 0:01:35]} 25... Rd7 {[%clk 0:02:24.8]}
26. Qf5 {[%clk 0:01:32.8]} 26... Ree7 {[%clk 0:02:22.3]} 27. h4 {[%clk
0:00:50.1]} 27... Rd2 {[%clk 0:02:23.4]} 28. Qc8+ {[%clk 0:00:29.7]} 28... Kh7
{[%clk 0:02:23.7]} 29. h5 {[%clk 0:00:23.7]} 29... Rxf2+ {[%clk 0:02:23.4]} 30.
Kh3 {[%clk 0:00:25.2]} 30... Rd2 {[%clk 0:01:56.8]} 31. Bd3+ {[%clk 0:00:23]}
31... g6 {[%clk 0:01:57.5]} 32. hxg6+ {[%clk 0:00:16]} 32... fxg6 {[%clk
0:01:58.9]} 33. Qf8 {[%clk 0:00:17]} 33... Rg7 {[%clk 0:01:55.3]} 34. Bc4 {[%clk
0:00:11.3]} 34... Bg1 {[%clk 0:01:53.1]} 35. Qf6 {[%clk 0:00:05.4]} 35... Rh2+
{[%clk 0:01:48.5]} 36. Kg4 {[%clk 0:00:06.5]} 36... h5+ {[%clk 0:01:50.2]} 0-1

[Event "*** Titled Tuesday 3|2 Blitz"]
[Site "Chess.com"]
[Date "2015.10.06"]
[Round "5"]
[White "LePlusMortel"]
[Black "KyronGriffith"]
[Result "0-1"]
[WhiteElo "2387"]
[BlackElo "2239"]
[TimeControl "180+2"]
[EndTime "18:02:38 PDT"]
[Termination "KyronGriffith won by resignation"]

1. Nf3 {[%clk 0:03:01.9]} 1... Nf6 {[%clk 0:02:59.4]} 2. g3 {[%clk 0:03:03.1]}
2... g6 {[%clk 0:03:01]} 3. Bg2 {[%clk 0:03:04.7]} 3... Bg7 {[%clk 0:03:02.6]}
4. O-O {[%clk 0:03:06.6]} 4... O-O {[%clk 0:03:04]} 5. d3 {[%clk 0:03:08.3]}
5... d6 {[%clk 0:03:05.1]} 6. c3 {[%clk 0:03:09.9]} 6... c5 {[%clk 0:03:00.1]}
7. Qa4 {[%clk 0:03:10.4]} 7... Nc6 {[%clk 0:02:53.3]} 8. Qh4 {[%clk 0:03:10.9]}
8... h5 {[%clk 0:02:39.1]} 9. h3 {[%clk 0:03:11]} 9... Rb8 {[%clk 0:02:30.6]}
10. a4 {[%clk 0:03:11.3]} 10... a6 {[%clk 0:02:30.8]} 11. d4 {[%clk 0:02:55]}
11... Bf5 {[%clk 0:02:10.1]} 12. dxc5 {[%clk 0:02:51.1]} 12... dxc5 {[%clk
0:02:10.7]} 13. Bf4 {[%clk 0:02:51.9]} 13... Rc8 {[%clk 0:02:09.8]} 14. Ne5
{[%clk 0:02:46]} 14... Nxe5 {[%clk 0:02:02.5]} 15. Bxe5 {[%clk 0:02:47.9]} 15...
Qb6 {[%clk 0:02:00.9]} 16. c4 {[%clk 0:02:05.8]} 16... Rfe8 {[%clk 0:01:42.9]}
17. Nc3 {[%clk 0:01:50]} 17... Qxb2 {[%clk 0:01:38.7]} 18. e4 {[%clk 0:01:46.8]}
18... Nxe4 {[%clk 0:01:26.5]} 19. Bxg7 {[%clk 0:01:37.5]} 19... Nxc3 {[%clk
0:01:24.7]} 20. Bh6 {[%clk 0:01:26.6]} 20... Ne2+ {[%clk 0:01:08.6]} 21. Kh2
{[%clk 0:01:14.6]} 21... Rc7 {[%clk 0:00:45]} 22. Rae1 {[%clk 0:01:06.6]} 22...
Nd4 {[%clk 0:00:42.1]} 23. Re3 {[%clk 0:00:50.8]} 23... Be6 {[%clk 0:00:33.4]}
24. Qf4 {[%clk 0:00:43.3]} 24... Rd7 {[%clk 0:00:23.6]} 25. g4 {[%clk
0:00:37.8]} 25... hxg4 {[%clk 0:00:24.9]} 26. hxg4 {[%clk 0:00:39.7]} 26... Bxc4
{[%clk 0:00:25]} 27. Rfe1 {[%clk 0:00:34.8]} 27... Ne6 {[%clk 0:00:24.2]} 28.
Qg3 {[%clk 0:00:32.2]} 28... Qh8 {[%clk 0:00:24.5]} 29. g5 {[%clk 0:00:31.9]}
29... Rd4 {[%clk 0:00:22.2]} 30. Bxb7 {[%clk 0:00:17]} 30... a5 {[%clk
0:00:20.1]} 31. Bc6 {[%clk 0:00:16.1]} 31... Red8 {[%clk 0:00:21.7]} 32. Bg2
{[%clk 0:00:11.6]} 32... Rd2 {[%clk 0:00:22.7]} 33. Bh3 {[%clk 0:00:12.4]} 33...
Qd4 {[%clk 0:00:22.4]} 34. Bxe6 {[%clk 0:00:11.9]} 34... Bxe6 {[%clk 0:00:24.3]}
35. Rxe6 {[%clk 0:00:10.2]} 35... fxe6 {[%clk 0:00:26.2]} 36. Re3 {[%clk
0:00:10.7]} 36... Qd5 {[%clk 0:00:22.2]} 37. Rf3 {[%clk 0:00:10.3]} 37... Qd6
{[%clk 0:00:21.6]} 38. Rf4 {[%clk 0:00:11.7]} 38... Rd4 {[%clk 0:00:22.7]} 39.
Rxd4 {[%clk 0:00:08.2]} 39... Qxg3+ {[%clk 0:00:23.6]} 0-1